Cogmind - Beta 13 @@@ ROGUE MODE // 2024.04.10 @ 23:21:01 // AFD2020/Player2 Player: Nebula avali Result: Destroyed by Piercing Trap Performance ------------- Evolutions (0) 0 Regions Visited (2) 400 Robots Destroyed (13) 65 Value Destroyed (389) 389 Prototype IDs (0) 0 Alien Tech Used (0) 0 Bonus (140) 140 TOTAL SCORE: 994 Bonus ------- Follower Combat Kills 260 Friendly Fire -120 Cogmind --------- Core Integrity 0/250 Matter 279/300 Energy 263/265 System Corruption 0% Temperature Cool (0) Movement Rolling (110) Ox2 Location -10/Subcaves Parts ------- > --- POWER (1) -------- Reinforced Ion Engine > --- PROPULSION (2) --- Wheel Wheel > --- UTILITY (2) ------ High-capacity Storage Unit Signal Interpreter > --- WEAPON (2) ------- Riot Gun Heavy Battle Rifle > --- INVENTORY (20) --- Reinforced Ion Engine Reinforced Ion Engine Subdweller Power Source Wheel Wheel Subdweller Monowheel Visual Processing Unit Assault Rifle Subdweller Machine Gun Improved Light Cannon Grenade Launcher Peak State ------------ > --- POWER ------------ Reinforced Ion Engine > --- PROPULSION ------- Wheel Wheel > --- UTILITY ---------- High-capacity Storage Unit Signal Interpreter > --- WEAPON ----------- Riot Gun Heavy Battle Rifle > --- INVENTORY -------- Reinforced Ion Engine Reinforced Ion Engine Subdweller Power Source Wheel Wheel Subdweller Monowheel Visual Processing Unit Assault Rifle Subdweller Machine Gun Improved Light Cannon Grenade Launcher [Rating: 14] Favorites ----------- Power Reinforced Ion Engine Engine Reinforced Ion Engine Propulsion Light Treads Treads Light Treads Leg Aluminum Leg Wheel Wheel Utility High-capacity Storage Unit Storage High-capacity Storage Unit Processor Signal Interpreter Weapon Improved Light Cannon Energy Gun Riot Gun Ballistic Gun Assault Rifle Ballistic Cannon Improved Light Cannon Build | -11 -10 -10 ------- Run | Yrd Mat Sub Slots Evolved . | . . . Power . | . . . Propulsion . | . . . Utility . | . . . Weapon . | . . . Parts Attached 20 | 6 5 9 Power 2 | 1 1 . Engine 2 | 1 1 . Core . | . . . Reactor . | . . . Propulsion 7 | 2 . 5 Treads 2 | 2 . . Leg 2 | . . 2 Wheel 3 | . . 3 Hover . | . . . Flight . | . . . Utility 4 | 1 3 . Device . | . . . Storage 2 | 1 1 . Processor 2 | . 2 . Hackware . | . . . Protection . | . . . Artifact . | . . . Weapon 7 | 2 1 4 Energy Gun 1 | . . 1 Energy Cannon . | . . . Ballistic Gun 4 | 2 . 2 Ballistic Cannon 2 | . 1 1 Launcher . | . . . Special Weapon . | . . . Impact Weapon . | . . . Slashing Weapon . | . . . Piercing Weapon . | . . . Special Melee Weapon . | . . . Unidentified Prototypes . | . . . Parts Lost 1 | . . 1 Power . | . . . Propulsion . | . . . Utility . | . . . Weapon 1 | . . 1 Highest Loss Streak 1 | . . 1 To Critical Strikes . | . . . Average Slot Usage (%) 98 | . 97 99 Engine 14 | . 14 14 Treads 24 | . 28 18 Wheel 4 | . . 9 Storage 14 | . 14 14 Processor 12 | . 11 14 Ballistic Gun 10 | . 17 1 Ballistic Cannon 17 | . 10 26 Naked Turns . | . . . Heaviest Build 58 | 14 56 58 Greatest Support 40 | 40 40 40 Greatest Overweight (x) 2 | . 1 2 Average Overweight (x) 1 | . . 1 Largest Inventory Capacity 20 | 8 20 20 Average Capacity 17 | 6 16 20 Most Carried 12 | 6 9 12 Average Carried 8 | 4 8 9 Final Capacity 20 | 8 20 20 Final Carried 11 | 6 9 11 Class Distribution -------------------- 100% | Mutant Dominant Class ---------------- Mutant | -10/Materials Mutant | -10/Subcaves Resources | -11 -10 -10 ----------- Run | Yrd Mat Sub Matter Collected 780 | 240 217 323 Remotely . | . . . Salvage Created 328 | . 200 128 Parts 19 | . 12 7 Haulers Intercepted . | . . . Recyclers Shooed . | . . . Parts Field Recycled . | . . . Retrieved Matter . | . . . Parts Self-Destructed 3 | . . 3 Prevented . | . . . Kills | -11 -10 -10 ------- Run | Yrd Mat Sub Combat Hostiles Destroyed 12 | . 5 7 Guns 3 | . 2 1 Cannons 9 | . 3 6 Classes Destroyed 4 | . 2 2 Watcher 1 | . 1 . Swarmer 3 | . . 3 Grunt 5 | . 5 . Subdweller 4 | . . 4 Best Kill Streak 2 | . 2 2 Combat Bots Only 2 | . 2 2 Max Kills in Single Turn 1 | . 1 1 Gunslinging . | . . . Exploded . | . . . Melee . | . . . Uniques/NPCs Destroyed . | . . . Combat | -11 -10 -10 -------- Run | Yrd Mat Sub Hostile Shots Fired 113 | . 21 92 Missed 49 | . 9 40 Damage Taken 865 | . 171 694 Core 147 | . 35 112 Absorbed by Shields . | . . . Core Remaining (%) 100 | 100 . . Volleys Fired 57 | . 26 31 Largest 2 | . 2 2 Hottest 78 | . 59 78 Shots Fired 114 | . 52 62 Gun 50 | . 44 6 Cannon 64 | . 8 56 Launcher . | . . . Special . | . . . Kinetic 114 | . 52 62 Thermal . | . . . Explosive . | . . . Electromagnetic . | . . . Robot Hit Streak 7 | . 7 4 Robot Miss Streak 5 | . 4 5 Penetration Max . | . . . Secondary Targets . | . . . Shots Hit Robots 57 | . 31 26 Core Hits 27 | . 16 11 Critical Kills . | . . . Critical Parts Destroyed . | . . . Critical Strikes . | . . . Melee Attacks . | . . . Impact . | . . . Slashing . | . . . Piercing . | . . . Sneak Attacks . | . . . Combat Hostiles . | . . . Follow-up Attacks . | . . . Damage Inflicted 983 | . 419 564 Guns 364 | . 316 48 Cannons 619 | . 103 516 Explosions . | . . . Melee . | . . . Ramming . | . . . Kinetic 983 | . 419 564 Thermal . | . . . Explosive . | . . . Electromagnetic . | . . . Impact . | . . . Slashing . | . . . Piercing . | . . . Highest Corruption . | . . . Average Corruption . | . . . Corruption Purged . | . . . Corruption Blocked . | . . . Overload Shots . | . . . Overflow Damage 7 | . . 7 Projectiles 7 | . . 7 Explosions . | . . . Melee . | . . . Knockbacks 4 | . . 4 Impact . | . . . Kinetic 4 | . . 4 Secondary . | . . . Self-Inflicted Damage . | . . . Shots . | . . . Rammed . | . . . Targets Rammed . | . . . Kicked . | . . . Crushed . | . . . Highest Temperature 289 | . 24 289 Average Temperature 64 | . 9 178 Received Heat Transfer 494 | . 96 398 Effects 2 | . . 2 Energy Bleed 1 | . . 1 Interference 1 | . . 1 Siege Activations . | . . . Robots Corrupted . | . . . Combat Hostiles . | . . . Parts Fried . | . . . Impact Corruptions . | . . . Robots Melted . | . . . Combat Hostiles . | . . . Parts Melted . | . . . Heat Transferred . | . . . Parts Sabotaged . | . . . Parts Stolen . | . . . Parts Stripped . | . . . Power Chain Reactions . | . . . Alert | -11 -10 -10 ------- Run | Yrd Mat Sub Peak Influence 229 | . 229 . Initial . | . . . Average 50 | . 55 . Maximum Alert Level 1 | . 1 . Low Security (%) 96 | 100 96 . Level 1 3 | . 3 . Level 2 . | . . . Level 3 . | . . . Level 4 . | . . . Level 5 . | . . . High Security . | . . . Max Security . | . . . Squads Dispatched 2 | . 2 . Investigation 1 | . 1 . Extermination . | . . . Reinforcement 1 | . 1 . Assault . | . . . Garrison . | . . . Intercept . | . . . Searches Triggered . | . . . Construction Impeded . | . . . Haulers Reinforced . | . . . Active Scanning Responses . | . . . Cargo Convoy Interrupts . | . . . Stealth | -11 -10 -10 --------- Run | Yrd Mat Sub Distress Signals 1 | . 1 . Communications Jammed . | . . . Distress Signals . | . . . Times Spotted 74 | . 15 59 Peak Tracking Total 6 | . 3 6 Tactical Retreats 3 | . . 3 Traps | -11 -10 -10 ------- Run | Yrd Mat Sub Traps Triggered 3 | . 1 2 Indirectly . | . . . Trap Hack Attempts . | . . . Triggered . | . . . Disarmed . | . . . Reprogrammed . | . . . Reused . | . . . Traps Extracted . | . . . Installed . | . . . Triggered . | . . . Machines | -11 -10 -10 ---------- Run | Yrd Mat Sub Machines Disabled 1 | . . 1 Max in Single Turn 1 | . . 1 Machines Repaired . | . . . Machines Dismantled . | . . . Machines Sabotaged . | . . . Overloaded Fab Kills . | . . . Hacking | -11 -10 -10 --------- Run | Yrd Mat Sub Machines Accessed 4 | . 3 1 Terminals 3 | . 3 . Fabricators . | . . . Repair Stations . | . . . Recycling Units . | . . . Scanalyzers . | . . . Garrison Access . | . . . Total Hacks 12 | . 7 5 Successful 7 | . 2 5 Failed 5 | . 5 . Catastrophic 1 | . 1 . Database Lockouts . | . . . Manual 6 | . 6 . Terminals 7 | . 7 . Fabricators . | . . . Repair Stations . | . . . Recycling Units . | . . . Scanalyzers . | . . . Garrison Access . | . . . Terminal Hacks 7 | . 2 5 Record 5 | . . 5 Recall Investigation 1 | . 1 . Zone Layout 1 | . 1 . Fabricator Hacks . | . . . Repair Station Hacks . | . . . Recycling Unit Hacks . | . . . Scanalyzer . | . . . Garrison Access Hacks . | . . . Unauthorized Hacks . | . . . Terminals . | . . . Fabricators . | . . . Repair Stations . | . . . Recycling Units . | . . . Scanalyzers . | . . . Garrison Access . | . . . Data Cores Recovered . | . . . Used . | . . . Hacking Detections 2 | . 2 . Full Trace Events 1 | . 1 . Feedback Events . | . . . Feedback Blocked . | . . . Robot Schematics Acquired . | . . . Robots Built . | . . . Authchips . | . . . Time . | . . . Total Robot Build Rating . | . . . Part Schematics Acquired . | . . . Parts Built . | . . . Authchips . | . . . Time . | . . . Total Part Build Rating . | . . . Parts Repaired . | . . . Time . | . . . Parts Recycled . | . . . Recycled Matter . | . . . Retrieved Matter . | . . . Retrieved Components . | . . . Parts Scanalyzed . | . . . Part Schematics Acquired . | . . . Parts Damaged . | . . . Bothacking | -11 -10 -10 ------------ Run | Yrd Mat Sub Used RIF Installer . | . . . Robots Hacked . | . . . Non-combat . | . . . Combat . | . . . Robot Hacks Applied . | . . . Relay Couplers Released . | . . . Fabnet Peak Effective % . | . . . Robots Rewired . | . . . Allies Hacked . | . . . Hacks Repelled . | . . . Allies | -11 -10 -10 -------- Run | Yrd Mat Sub Total Allies 1 | . 1 . Largest Group 1 | . 1 1 Highest-Rated Group 62 | . 62 62 Highest-Rated Ally 62 | . 62 62 Total Orders . | . . . Ally Attacks 44 | . 23 21 Total Damage 1031 | . 437 594 Kills 13 | . 8 5 Allies Corrupted . | . . . Allies Melted . | . . . Intel | -11 -10 -10 ------- Run | Yrd Mat Sub Robot Analysis Total . | . . . Derelict Logs Recovered . | . . . Drone Launches . | . . . Drone Recoveries . | . . . Exploration | -11 -10 -10 ------------- Run | Yrd Mat Sub Turns Passed 3014 | 139 1654 1221 Spaces Moved 1115 | 79 478 558 Core 1 | 1 . . Treads 757 | 78 478 201 Legs . | . . . Wheels 357 | . . 357 Hover . | . . . Flight . | . . . Fastest Speed 50 | 50 160 110 Average Speed 180 | 158 204 164 Slowest Speed 240 | 160 240 240 Overloaded Moves . | . . . Propulsion Burnouts . | . . . Robots Hopped . | . . . Cave-ins Triggered . | . . . Exploration Rate (%) 39 | 5 77 37 Regions Visited 2 Branch Regions 1 Pre-discovered Areas 3 | . . 3 Known Exits Taken 1 | . 1 . Unknown Exits Taken 1 | 1 . . Scrap Searched 1 | . . 1 Spaces Dug . | . . . Terrain Destroyed . | . . . Melee . | . . . Projectile . | . . . AOE . | . . . Terrain Rammed . | . . . Walls Destroyed . | . . . Machines Disabled . | . . . Actions | -11 -10 -10 --------- Run | Yrd Mat Sub Total 2002 | 90 1107 805 Wait 771 | . 585 186 Move 1113 | 78 477 558 Hop . | . . . Pick Up 20 | 6 7 7 Fast Attach 10 | 6 2 2 Attach 7 | . 1 6 Detach 8 | . 1 7 Swap 3 | . 2 1 Drop 13 | . 6 7 Fire 57 | . 26 31 Melee . | . . . Ram . | . . . Kick . | . . . Crush . | . . . Escape Stasis . | . . . Rewire . | . . . Trap . | . . . Miscellaneous . | . . . Route ------- -11/Scrapyard -10/Materials (discovered 5 exits: [*Mat x3] / [Min] / *Sub) -10/Subcaves (discovered 3 exits: *Mat x2 / *Rec) History --------- Turn | Location | Event 15 | -11/Scrapyard | Discovered new exit (range 16) 140 | -11/Scrapyard | Entered Materials 325 | -10/Materials | Build established: Mutant 354 | -10/Materials | Discovered new exit (range 13) 494 | -10/Materials | Discovered new exit (range 8) 618 | -10/Materials | Discovered new exit (range 8) 701 | -10/Materials | Discovered new exit (range 3) 1772 | -10/Materials | Discovered new exit (range 4) 1791 | -10/Materials | Identified exit to Subcaves 1794 | -10/Materials | Entered Subcaves 1893 | -10/Subcaves | Learned location of Zion (-6) 1893 | -10/Subcaves | Met a Zionite searching for "candidates" 2063 | -10/Subcaves | Ambushed by Subdwellers from Twisted Machinery 2094 | -10/Subcaves | Core integrity fell below 50% 2104 | -10/Subcaves | Discovered new exit (range 14) 2138 | -10/Subcaves | Identified exit to Materials 2353 | -10/Subcaves | Visited Clippyterm 2360 | -10/Subcaves | Learned location of Section 7 (-2) 2360 | -10/Subcaves | Learned location of Deep Caves (-6) 2360 | -10/Subcaves | Identified exit to Recycling 2723 | -10/Subcaves | Core integrity fell below 20% 3015 | -10/Subcaves | Destroyed by Piercing Trap Last Messages --------------- 02994_ Acquired 38 matter. 02996_ Acquired Sub. Machine Gun. 02998_ 4L-MR0 mumbles: "I'm surprised some of them are even willing to come in here given their fear of my usual visitors." 02998_ Acquired Sub. Monowheel. 03001_ Acquired 4 matter. 03006_ Player 2 searched through scrap. 03006_ Found Hvy. Battle Rifle. 03006_ Found 11 Matter. 03008_ 4L-MR0 mumbles: "Who knows where that last prototype ended up, probably tossed aside somewhere as if it were useless junk..." 03009_ Searching scrap... 03009_ Found Sub. Monowheel. 03009_ Found Riot Gun. 03009_ Found 17 Matter. 03010_ Acquired 17 matter. 03012_ Acquired Riot Gun. 03015_ Triggered Piercing Trap. 03015_ Spikes shoot up from the floor. 03015_ Critical hit (Impale). Map ----- +----------------------------------------------------+ | | | | | | | | | | | | | | | | | | | | | | | | | | | ?????????????????????????????????????????????????? | | ?????????????????????????????????????????????????? | | ?????????????????????????????????????????????????? | | ?????????????????????????????????????????????????? | | ?????????????????????????????????????????????????? | | ?????????????????????????????????????????????????? | | ?????????????????????????????????????????????????? | | ?????????????????????????????????????????????????? | | ???????????????????????####??????????????????????? | | ???????????????????????#< ??????????????????????? | | ????????????###????????#< #???????????#??????????? | | ???????????? ?????????#<<####????###$#??????????? | | ??????????## ###???????#<@ <#####"" "#??????????? | | ?????????##" " #???????#<@ # "#???????????? | | ?????????# ##??????##< ##??????????????? | | ######??## #???????##< ## <#??????????????? | | ## #### #??????####### <###??????? #? | | #?????????# ### !! " ## #? | | ## # # ##?????##### % | | ?######## ##??#### %####### | | ????????## #### ##?????? | | ????????## ##???????? ## ? | | ????????# ## ##??????????? ###?????#? | | ????????# ######?????????????#????????? | | ????????# ## #???????????????????????????? | | ????????# ##### ###???????????????????????????? | | ????????## ### #?????????????????????????????? | | ????????# ### #????#?? ?????????????????????? | | ????????## # #??? ## ?????????????????????? | | ?????????# #?? ????????????????????? | | ?????????# ##? ????????????????????? | | ?????????# ###?# #????????????????????? | | ?????????# #??# ??????????????????????? | | ????????## ### ##????????????????????????? | | ????????# #????????????????????????? | | ????????# ## # #???????????????????????? | | ????????### #?????????????????????????????? | +----------------------------------------------------+ Best States ------------- Heat Dissipation 25 Energy Generation 12 Energy Capacity 265 Matter Stores 300 Matter Capacity 300 Sight Range 16 Terrain Scan Density 10 Evasion (%) 40 Targeting Accuracy 5 Recoil Reduction 2 Item Schematics ----------------- None Robot Schematics ------------------ None Fabricated ------------ Nothing Alien Tech Used ----------------- None Achievements -------------- None Challenges ------------ None Player 2 | -11 -10 -10 ---------- Run | Yrd Mat Sub Slots Evolved . | . . . Power . | . . . Propulsion . | . . . Utility . | . . . Weapon . | . . . Parts Attached 14 | . 12 2 Parts Lost . | . . . Damage Taken 368 | . 93 275 Core 111 | . 44 67 Player 2/Cogmind (%) 43 | . 55 37 Absorbed by Shields . | . . . Damage Inflicted 1031 | . 437 594 Player 2/Cogmind (%) 51 | . 51 51 Combat Hostiles Destroyed 9 | . 6 3 Player 2/Cogmind (%) 42 | . 54 30 Game ------ Seed PowerThunderLattice Manual? 0 Play Time 00:18:24 Cumulative 29.0 hours Start 2024.04.10 @ 23:02:56 End 2024.04.10 @ 23:21:01 Sessions 1 Manual Loads 0 Difficulty Rogue Special Mode AFD2020/Player2 Game No. 35 Rogue 34 Adventurer 1 Explorer 0 Win Type - Total 1 Types 1/0/0/0/0/0/0/0/0 Lore% 17 Gallery% 41 Achievement% 34 Wizard Run 0 Options --------- Layout 0 ASCII 0 Keyboard 0 Movement Numpad Keybinds 0 Fullscreen 1 Font 18/SmallcapsGlow Map View 76x50 Zoom Use 0% Tactical HUD 1 Map Filters NONE Filters NONE Steam 1 RUN: 7d0c3ddd-a42c-4498-a405-0feb5505d7d4